bitfinex/quotes_ETHUSD_20240618
["timestamp","ask_amount","ask_price","bid_price","bid_amount"]
[1718735152986,2.92724,3416.2,3415.8,2.92756]
[1718735153298,1.4034714,3416.5,3415.8,2.92756]
[1718735153299,2.92706,3416.4,3416.0,2.92739]
[1718735153602,2.92698,3416.5,3416.1,2.92724]
[1718735153960,0.50673818,3416.8,3416.4,2.92704]
[1718735154183,13.8314014,3416.9,3416.4,2.92704]
[1718735154562,5.05469468,3416.8,3416.3,2.92712]
[1718735154766,3.43339471,3416.8,3416.3,2.92712]
[1718735155407,2.12804343,3416.7,3416.3,2.92712]
[1718735155609,5.05486347,3416.7,3416.3,2.92712]
[1718735155892,2.92682,3416.7,3416.3,2.92712]
[1718735157651,4.33040886,3416.8,3416.3,2.92712]
[1718735157652,2.92689,3416.6,3416.3,2.92712]
[1718735157897,2.92689,3416.6,3416.1,2.9273]
[1718735157898,2.92689,3416.6,3416.2,2.92722]
[1718735158752,1.40368886,3416.7,3415.8,2.4439]
[1718735158950,2.92672,3416.8,3416.4,2.92704]
[1718735159398,2.12790731,3416.7,3416.4,2.92704]
[1718735159758,5.05470731,3416.7,3416.4,2.92704]
[1718735160073,2.9268,3416.7,3416.4,2.92704]
[1718735160275,1.40368886,3416.8,3416.5,2.92691]
[1718735160458,2.12788747,3416.7,3416.5,2.92691]
[1718735160658,2.12788747,3416.7,3416.3,2.92706]
[1718735160858,2.12788747,3416.7,3416.5,2.92693]
[1718735161060,2.12788747,3416.7,3416.2,2.92715]
[1718735161300,3.53157633,3416.7,3416.2,2.92715]
[1718735161503,1.40368886,3416.7,3416.5,2.92695]
[1718735162295,1.40368886,3416.6,3416.5,2.92695]
[1718735162795,1.40368886,3416.7,3416.5,2.92695]
[1718735163014,1.40368886,3416.6,3416.4,2.92704]
[1718735163499,1.40368886,3416.6,3416.3,2.92714]
[1718735163500,1.40368886,3416.6,3416.5,5.85394]
[1718735163800,3.43305055,3417.2,3417.0,2.92654]
[1718735163801,1.40368886,3417.2,3417.0,2.92654]
[1718735163959,0.50667055,3417.3,3416.9,2.92661]
[1718735164168,1.40368886,3417.3,3417.2,2.92637]
[1718735164474,1.40368886,3417.3,3417.2,5.85274]
[1718735164691,1.40368886,3417.3,3416.9,2.92657]
[1718735164692,1.40368886,3417.4,3417.3,2.92628]
[1718735165017,0.50667055,3417.6,3417.5,5.85222]
[1718735165018,1.40368886,3417.6,3417.5,5.85222]
[1718735165297,0.50647879,3418.0,3417.5,2.92604]
[1718735165518,1.40391498,3417.7,3417.6,2.92602]
[1718735165702,1.40391498,3417.8,3417.7,5.85188]
[1718735165922,1.40391498,3418.0,3417.8,2.92585]
[1718735166195,1.40391498,3418.0,3417.3,2.92621]
[1718735166415,1.40391498,3418.0,3417.9,8.77731]
[1718735166575,1.40391498,3418.1,3418.0,8.77704]
[1718735166780,1.40391498,3418.3,3418.1,2.9256]
[1718735166984,1.40391498,3418.5,3418.2,3.47551]
[1718735167302,1.40391498,3418.8,3418.7,2.92508]
[1718735167870,1.40391498,3418.8,3418.6,2.92516]
[1718735168199,1.40391498,3418.8,3418.6,2.92515]
[1718735168511,1.40391498,3418.8,3418.7,2.92508]
[1718735169057,1.40391498,3418.9,3418.7,2.92508]
[1718735169294,1.40391498,3418.9,3418.7,2.92507]
[1718735169714,1.40391498,3418.9,3418.8,2.925]
[1718735170333,1.40391498,3418.9,3418.4,2.92533]
[1718735170544,1.40391498,3418.9,3418.6,2.92515]
[1718735171123,4.32875498,3419.0,3418.6,2.92515]
[1718735171895,2.92518,3418.6,3418.2,2.92551]
[1718735172258,2.92569,3418.0,3417.5,2.92604]
[1718735172396,2.92576,3418.0,3417.5,2.9261]
[1718735172737,2.92569,3418.0,3417.7,2.92594]
[1718735172946,2.92577,3417.9,3417.3,2.92628]
[1718735173105,2.92598,3417.7,3417.3,2.92628]
[1718735173631,2.92598,3417.7,3417.4,2.92618]
[1718735173938,2.92579,3417.9,3417.4,2.92618]
[1718735173939,2.92586,3417.8,3417.4,2.92618]
[1718735174141,2.92596,3417.7,3417.3,2.92628]
[1718735174353,1.91039377,3418.0,3417.0,2.92649]
[1718735174503,0.60968033,3418.1,3417.7,2.92586]
[1718735174701,2.9256,3418.1,3417.7,2.92586]
[1718735175054,4.93909531,3418.3,3417.5,2.92607]
[1718735175197,3.53521033,3418.2,3417.8,2.92578]
[1718735175916,0.60968033,3418.2,3417.9,2.92575]
[1718735176346,0.60914742,3418.3,3418.2,2.92551]
[1718735176712,0.60914742,3418.4,3418.3,2.92543]
[1718735176921,0.60914742,3418.6,3418.4,2.92534]
[1718735177124,0.60914742,3418.7,3418.4,2.92534]
[1718735177460,0.60940678,3418.7,3418.6,2.92517]
[1718735177759,0.60940678,3418.8,3418.6,2.92517]
[1718735177928,3.84084816,3419.0,3418.6,2.92517]
[1718735177929,0.60940678,3418.9,3418.6,2.92517]
[1718735178115,3.53440678,3418.8,3418.4,2.92532]
[1718735178318,0.60940678,3418.7,3418.4,2.92532]
[1718735178752,3.53449678,3418.7,3418.3,2.9254]
[1718735179055,3.53449678,3418.7,3418.4,2.92534]
[1718735179219,0.60940678,3418.7,3418.6,2.92517]
[1718735179419,0.60940678,3418.8,3418.6,2.92517]
[1718735180138,0.60940678,3418.8,3418.7,2.92508]
[1718735180451,0.60940678,3418.9,3418.8,2.925]
[1718735180754,0.91601816,3419.1,3418.7,2.92508]
[1718735180755,0.60940678,3419.1,3419.0,2.92483]
[1718735180943,0.60940678,3419.2,3419.1,2.92474]
[1718735181418,0.60940678,3419.2,3419.1,5.84948]
[1718735181611,0.60940678,3419.3,3419.2,2.92466]
[1718735182343,0.60940678,3419.4,3419.2,2.92466]
[1718735183154,0.60940678,3419.4,3419.3,2.92457]
[1718735183372,0.10174213,3419.7,3419.4,5.84896]
[1718735183373,0.60940678,3419.5,3419.4,5.84896]
[1718735183572,0.60940678,3419.6,3419.1,2.92473]
[1718735183772,0.60940678,3419.6,3419.4,2.92443]
[1718735184059,0.60940678,3419.7,3419.4,2.92443]
[1718735184656,0.60940678,3419.7,3419.5,2.92439]
[1718735184859,3.53355678,3419.8,3419.5,2.92439]
[1718735185174,3.53355678,3419.8,3419.4,2.92447]
[1718735186081,0.60940678,3419.8,3419.5,2.92433]
[1718735186232,2.92423,3419.7,3419.4,2.92447]
[1718735186427,2.92433,3419.6,3419.2,2.92458]
[1718735186936,2.92423,3419.7,3419.3,2.92454]
[1718735187577,2.9244,3419.5,3419.0,2.92475]
[1718735187786,2.9244,3419.5,3419.2,2.92463]
[1718735188108,2.92432,3419.6,3419.2,2.92463]
[1718735188271,2.92432,3419.6,3419.1,2.92466]
[1718735188272,2.92432,3419.6,3419.3,2.92455]
[1718735188458,2.92432,3419.6,3419.1,5.84932]
[1718735188644,2.92432,3419.6,3419.1,2.92466]
[1718735188843,2.92432,3419.6,3419.2,2.92463]
[1718735189167,2.92424,3419.7,3419.3,2.92451]
[1718735190260,4.32865952,3419.8,3419.1,2.92473]
[1718735190593,4.32865952,3419.8,3418.3,7.29791616]
[1718735190594,2.92485,3419.0,3418.6,2.9251]
[1718735190875,4.32886952,3419.5,3418.5,2.92518]
[1718735191043,1.40443952,3419.4,3418.5,2.92518]
[1718735191245,2.92466,3419.2,3418.7,2.92507]
[1718735191443,2.92466,3419.2,3418.8,2.92498]
[1718735192236,4.32909952,3419.2,3418.8,2.92498]
[1718735192431,1.40443952,3419.2,3418.8,2.92498]
[1718735192749,2.92491,3419.0,3418.6,2.9251]
[1718735193150,4.32934952,3419.0,3418.6,2.9251]
[1718735193375,4.32934952,3419.0,3418.7,2.92507]
[1718735193776,4.32934952,3419.0,3418.6,5.85019]
[1718735194404,4.32934952,3419.0,3418.6,2.92509]
[1718735194998,2.92524,3418.6,3418.2,2.92549]
[1718735195174,1.40443952,3418.5,3418.2,2.92549]
[1718735195360,1.40443952,3418.4,3418.2,2.9255]
[1718735195894,1.40443952,3418.4,3418.3,2.92543]
[1718735196097,2.92461,3419.3,3418.3,2.92543]
[1718735196098,1.40443952,3418.6,3418.5,2.92525]
[1718735196275,1.40443952,3418.7,3418.6,5.85034]
[1718735196798,1.40443952,3418.8,3418.7,2.92508]
[1718735196959,2.92483,3419.0,3418.7,2.92508]
[1718735197160,2.92483,3419.0,3418.6,2.92515]
[1718735197355,1.40412711,3418.7,3418.6,2.92515]
[1718735198065,1.40412711,3418.7,3418.6,5.85032]
[1718735198483,2.92476,3419.1,3418.7,2.92508]
[1718735198771,1.40423292,3418.8,3418.7,2.92508]
[1718735199599,1.40423292,3418.8,3418.7,5.85016]
[1718735199771,1.40423292,3418.8,3418.7,2.92508]
[1718735200799,3.53416678,3419.1,3418.8,2.92498]
[1718735201017,2.92476,3419.1,3418.8,2.92498]
[1718735201506,3.53416678,3419.1,3418.8,2.92498]
[1718735202306,1.40359554,3418.9,3418.8,2.92498]
[1718735202479,0.60940678,3419.1,3418.8,2.92498]
[1718735203401,0.60940678,3419.0,3418.8,2.92498]
[1718735203700,0.60940678,3419.0,3418.8,2.92493]
[1718735204374,0.60940678,3418.9,3418.8,2.92493]
[1718735204574,0.60940678,3418.9,3418.6,2.92508]
[1718735204783,0.60940678,3418.9,3418.7,2.92505]
[1718735205205,0.60940678,3418.9,3418.6,2.92517]
[1718735205367,0.60940678,3418.8,3418.7,2.92508]
[1718735206574,1.11562865,3418.8,3418.7,2.92508]
[1718735207596,1.42224003,3418.8,3418.7,2.92508]
[1718735207908,0.91601816,3418.8,3418.7,2.92508]
[1718735208219,0.50622187,3418.8,3418.7,2.92508]
[1718735208419,0.50622187,3418.8,3418.6,2.92516]
[1718735208627,0.50622187,3418.8,3418.0,2.4014]
[1718735208628,2.92518,3418.6,3418.3,2.92542]
[1718735208839,2.92518,3418.6,3417.6,5.2727]
[1718735208840,0.91591048,3418.4,3417.6,5.2727]
[1718735209038,2.0135534,3418.1,3417.8,2.92585]
[1718735209387,2.0135534,3418.1,3417.6,5.2727]
[1718735209388,2.3188035,3417.9,3417.6,2.926]
[1718735209633,2.92571,3418.0,3417.2,6.041474]
[1718735209634,0.91650461,3417.7,3417.2,2.3467]
[1718735209806,0.61099226,3417.5,3417.2,2.3467]
[1718735210145,0.91650461,3417.4,3417.2,5.27307]
[1718735210449,1.40300729,3417.4,3417.3,2.92628]
[1718735210599,0.91642215,3417.4,3417.3,5.85256]
[1718735210797,0.91642215,3417.5,3417.4,5.8524]
[1718735211111,0.91642215,3417.5,3417.4,9.656468]
[1718735211998,0.91642215,3417.5,3417.4,10.206468]
[1718735213437,0.91642215,3417.5,3417.4,9.3286]
[1718735214149,0.91642215,3417.6,3417.5,8.77833]
[1718735214299,0.91642215,3417.7,3417.6,8.77806]
[1718735214527,0.91642215,3417.9,3417.8,8.77755]
[1718735214859,0.91642215,3418.0,3417.9,8.77731]
[1718735215022,0.91642215,3418.0,3417.9,9.32731]
[1718735215218,1.21951972,3418.1,3418.0,5.85136]
[1718735215970,1.21951972,3418.1,3417.9,2.92577]
[1718735216119,3.03122543,3418.2,3418.0,2.92568]
[1718735216319,1.22139414,3418.1,3418.0,2.92568]
[1718735216525,1.52646276,3418.1,3418.0,2.92568]
[1718735217036,1.52646276,3418.2,3418.1,5.8512]
[1718735217257,1.52646276,3418.3,3418.1,2.9256]
[1718735217423,1.52646276,3418.3,3418.2,2.92551]
[1718735217618,1.40300729,3418.3,3418.2,2.92551]
[1718735218039,2.92940028,3418.3,3418.2,2.92551]
[1718735218447,3.02694538,3418.6,3418.2,2.92551]
[1718735218654,1.93343286,3418.6,3418.3,2.92541]
[1718735218975,1.93343286,3418.6,3418.2,2.92549]
[1718735219119,2.92899164,3418.3,3418.2,2.92549]
[1718735219568,2.92899164,3418.3,3418.1,2.92558]
[1718735219731,1.52654972,3418.2,3418.1,2.92558]
[1718735220239,2.92899164,3418.2,3418.0,2.92567]
[1718735220452,2.92899164,3418.2,3417.9,2.92576]
[1718735220641,2.92899164,3418.2,3417.4,2.4824]
[1718735220642,1.22190615,3418.0,3417.4,2.4824]
[1718735220843,0.91652987,3417.7,3417.5,2.92604]
[1718735221370,1.22203983,3417.6,3417.5,2.92604]
[1718735221936,1.52654972,3417.8,3417.5,2.92604]
[1718735221937,1.52654972,3417.7,3417.5,2.92604]
[1718735222141,1.22244168,3417.6,3417.5,2.92604]
[1718735223476,1.22244168,3417.7,3417.6,5.85204]
[1718735224038,1.22290634,3417.8,3417.7,5.85188]
[1718735224266,1.22286288,3417.8,3417.7,5.85188]
[1718735224971,0.91720629,3417.8,3417.7,12.866829]
[1718735225189,0.91720629,3417.9,3417.8,8.77755]
[1718735225470,1.22286288,3418.1,3418.0,5.85136]
[1718735226535,1.22286288,3418.1,3418.0,8.77704]
[1718735226748,1.22286288,3418.3,3418.1,2.9256]
[1718735226975,1.22286288,3418.4,3418.3,8.77629]
[1718735228468,2.92899164,3418.5,3418.4,5.85068]
[1718735230975,2.92899164,3418.5,3418.4,8.77602]
[1718735231141,1.52654972,3418.5,3418.4,8.77602]
[1718735232340,3.65306082,3418.5,3418.4,8.77602]
[1718735232771,3.35071823,3418.5,3418.4,10.551167]
[1718735233443,1.22420713,3418.5,3418.4,9.32602]
[1718735234149,3.35075356,3418.5,3418.4,9.32602]
[1718735234688,2.12641541,3418.5,3418.4,9.32602]
[1718735236243,2.22817079,3418.5,3418.0,2.92566]
[1718735236467,1.53049903,3418.3,3418.2,2.92551]
[1718735236654,4.35492214,3418.3,3418.2,2.92551]
[1718735237055,4.35492214,3418.3,3418.2,5.85102]
[1718735237258,5.75888819,3418.3,3418.2,5.85102]
[1718735237649,5.75888819,3418.3,3418.2,2.92551]
[1718735238211,5.75888819,3418.3,3418.2,5.85102]
[1718735238498,5.75903188,3418.3,3418.2,5.85102]
[1718735238798,5.75903188,3418.3,3418.2,2.92551]
[1718735238996,4.35492214,3418.3,3418.2,2.92551]
[1718735239499,2.92557,3418.2,3417.5,2.92609]
[1718735239784,1.53024739,3417.8,3417.7,2.92587]
[1718735240008,2.22817079,3417.8,3417.7,2.92587]
[1718735240154,3.63208825,3417.8,3417.7,2.92587]
[1718735240350,3.53033287,3417.8,3417.7,2.92587]
[1718735240593,3.63208825,3417.8,3417.7,2.92587]
[1718735240801,3.53033287,3417.8,3417.7,5.85181]
[1718735241004,3.63208825,3417.8,3417.7,5.85181]
[1718735241169,3.53033287,3417.8,3417.7,5.85181]
[1718735241498,2.22817079,3417.8,3417.7,5.85181]
[1718735241654,3.75849183,3417.8,3417.7,5.85181]
[1718735241989,3.65673645,3417.8,3417.7,5.85181]
[1718735242291,3.63224512,3417.8,3417.7,5.85181]
[1718735242490,3.53048974,3417.8,3417.7,5.85181]
[1718735242857,3.63224512,3417.8,3417.7,5.85181]
[1718735243156,3.53048974,3417.8,3417.7,5.85181]
[1718735243495,3.63224512,3417.8,3417.7,5.85181]
[1718735243655,3.53048974,3417.8,3417.7,5.85181]
[1718735244058,3.63224512,3417.8,3417.7,5.85181]
[1718735244392,5.65813695,3417.8,3417.7,5.85181]
[1718735244602,3.63289163,3417.8,3417.7,5.85181]
[1718735244823,3.53113625,3417.8,3417.7,5.85181]
[1718735244992,3.63294475,3417.8,3417.7,5.85181]
[1718735245190,3.53178515,3417.8,3417.7,5.85181]
[1718735245391,3.63354053,3417.8,3417.7,5.85181]
[1718735245597,3.53178515,3417.8,3417.7,5.85181]
[1718735245795,3.63354053,3417.8,3417.7,5.85181]
[1718735246003,3.53178515,3417.8,3417.7,5.85181]
[1718735246184,3.63354053,3417.8,3417.7,5.85181]
[1718735246502,3.53178515,3417.8,3417.7,5.85181]
[1718735246706,3.63354053,3417.8,3417.7,2.92587]
[1718735246904,3.53178515,3417.8,3417.7,2.92587]
[1718735247200,4.35590128,3417.8,3417.5,2.92609]
[1718735247511,2.12705277,3417.7,3417.4,2.92618]
[1718735247710,3.63267079,3417.6,3417.5,2.92604]
[1718735248079,4.3559937,3417.6,3417.0,2.92648]
[1718735248279,1.52952476,3417.1,3417.0,2.92648]
[1718735248523,3.65661789,3417.1,3417.0,2.92648]
[1718735248702,3.63231711,3417.1,3417.0,2.92648]
[1718735248907,3.53056173,3417.1,3417.0,2.92648]
[1718735249120,3.63231711,3417.1,3417.0,2.92648]
[1718735249407,3.63231711,3417.1,3417.0,5.85302]
[1718735249722,2.12709313,3417.1,3417.0,2.92648]
[1718735249891,2.22884851,3417.1,3417.0,2.92648]
[1718735250528,2.12709313,3417.1,3417.0,2.92648]
[1718735250741,3.63231711,3417.1,3417.0,2.92648]
[1718735250914,3.53056173,3417.1,3417.0,2.92648]
[1718735251225,3.63231711,3417.1,3417.0,2.92648]
[1718735252013,2.12709313,3417.1,3417.0,5.85302]
[1718735253095,1.50522398,3417.3,3417.1,2.92645]
[1718735253326,2.12748521,3417.2,3417.1,2.92645]
[1718735256312,2.92655,3417.0,3416.6,2.92681]
[1718735256609,1.52822884,3416.8,3416.4,2.92705]
[1718735256933,1.22249239,3416.5,3416.4,2.92705]
[1718735257143,1.22249239,3416.5,3416.3,2.92711]
[1718735257354,2.12780435,3416.6,3416.3,2.63371]
[1718735257355,3.35029674,3416.4,3416.3,2.63371]
[1718735258414,3.35041718,3416.4,3416.3,2.63371]
[1718735258614,3.35041394,3416.4,3416.3,5.56085]
[1718735258818,1.22249239,3416.5,3416.4,2.92705]
[1718735259063,1.52809042,3416.6,3416.5,2.92697]
[1718735259214,1.52809042,3416.7,3416.6,2.92688]
[1718735259415,3.65593856,3416.7,3416.6,2.92688]
[1718735259623,3.65593856,3416.7,3416.5,2.92695]
[1718735259855,2.12784814,3416.6,3416.5,2.92695]
[1718735260020,1.52809042,3416.7,3416.5,2.92695]
[1718735260218,3.34864587,3416.6,3416.5,2.92695]
[1718735261454,1.22077033,3416.6,3416.5,2.92695]
[1718735261820,0.91498816,3416.7,3416.6,2.92688]
[1718735262069,0.91498816,3416.8,3416.7,5.8536]
[1718735262218,0.60999892,3416.9,3416.8,8.78013]
[1718735263421,0.60999892,3417.0,3416.9,8.77986]
[1718735263641,0.60999892,3417.0,3416.9,2.92662]
[1718735263856,0.91498816,3417.0,3416.9,2.92662]
[1718735264159,0.91498816,3417.1,3417.0,2.92654]
[1718735264720,1.22077033,3417.2,3417.0,2.92654]
[1718735264961,0.91500472,3417.1,3417.0,2.92654]
[1718735267020,0.91500472,3417.1,3416.9,2.92662]
[1718735267360,0.91500472,3417.1,3417.0,2.92654]
[1718735267945,0.91500472,3417.1,3417.0,5.85308]
[1718735270155,0.91500472,3417.1,3417.0,2.92654]
[1718735270572,2.92672,3416.8,3416.4,2.92705]
[1718735270856,0.91515927,3416.8,3416.7,2.92679]
[1718735271057,1.40338015,3416.8,3416.7,2.92679]
[1718735271863,1.40338015,3416.8,3416.7,2.63339]
[1718735272456,2.3186398,3416.8,3416.7,2.63339]
[1718735272661,1.40338015,3416.8,3416.7,2.63339]
[1718735272861,1.40338015,3416.8,3416.6,2.92686]
[1718735273057,0.91533588,3416.7,3416.6,2.92686]
[1718735273229,2.31871603,3416.7,3416.6,5.85374]
[1718735273425,2.31871603,3416.7,3416.6,8.78062]
[1718735273861,0.61027464,3416.7,3416.6,8.78062]
[1718735274675,2.31871603,3416.8,3416.7,5.8536]
[1718735275163,2.31914391,3416.8,3416.7,5.8536]
[1718735275864,2.31914391,3416.8,3416.7,8.7804]
[1718735276069,1.22020047,3417.0,3416.7,8.7804]
[1718735276070,2.31912444,3416.9,3416.8,5.85342]
[1718735276373,2.31907752,3416.9,3416.8,5.85342]
[1718735277147,2.31907752,3416.9,3416.8,8.78013]
[1718735277361,0.91533588,3416.9,3416.8,8.78013]
[1718735277867,0.91533588,3416.9,3416.8,5.85342]
[1718735278364,1.22020047,3417.0,3416.9,5.85324]
[1718735278563,3.34776877,3417.0,3416.9,5.85324]
[1718735280165,3.34776877,3417.0,3416.9,8.77986]
[1718735280166,2.1275683,3417.0,3416.9,8.77986]
[1718735280472,2.3194296,3417.2,3417.0,11.70616]
[1718735280644,2.3194296,3417.2,3417.1,13.7769584]
[1718735280845,0.91620107,3417.3,3417.2,8.77911]
[1718735281182,2.3194296,3417.4,3417.3,8.77884]
[1718735281347,2.3194296,3417.4,3417.3,9.32884]
[1718735281348,2.32042904,3417.4,3417.3,9.32884]
[1718735281549,1.22156089,3417.4,3417.3,2.92628]
[1718735281845,1.5256866,3417.5,3417.4,2.9262]
[1718735282254,2.92619,3417.5,3417.1,2.92644]
[1718735282457,1.52992381,3417.2,3417.1,5.8529]
[1718735282645,1.52992381,3417.3,3417.2,5.85274]
[1718735283377,4.76193857,3417.6,3417.3,2.92628]
[1718735283569,2.12731681,3417.5,3417.3,2.92628]
[1718735283876,1.83590857,3417.6,3417.4,2.9262]
[1718735284097,4.76193857,3417.6,3416.8,2.9267]
[1718735284394,5.0535067,3417.5,3417.2,5.8527]
[1718735284689,2.1273267,3417.4,3417.2,5.8527]
[1718735284867,4.76208857,3417.5,3417.2,2.92635]
[1718735285176,1.83590857,3417.5,3417.3,2.92627]
[1718735285376,2.12730973,3417.4,3417.3,2.92627]
[1718735285680,1.83590857,3417.6,3417.5,2.92611]
[1718735285976,3.96316614,3417.6,3417.5,2.92611]
[1718735286277,3.96316614,3417.6,3417.5,5.85222]
[1718735286500,1.83590857,3417.8,3417.6,2.92602]
[1718735286794,1.83590857,3417.8,3417.7,2.92594]
[1718735286944,1.83856628,3417.8,3417.7,2.92594]
[1718735287156,3.96566213,3417.8,3417.7,2.92594]
[1718735288782,3.96566213,3417.8,3417.7,5.85188]
[1718735289144,2.12709585,3417.8,3417.7,5.85188]
[1718735289580,2.12709585,3417.8,3417.7,9.655615]
[1718735289780,1.40568915,3417.9,3417.8,5.8517]
[1718735291590,1.40568915,3417.9,3417.8,8.77755]
[1718735291770,1.40568915,3417.9,3417.8,5.8517]
[1718735292501,1.40568915,3418.0,3417.9,5.85154]
[1718735292668,3.53255176,3418.0,3417.9,5.85154]
[1718735293255,1.40568915,3418.0,3417.9,5.85154]
[1718735293484,1.40568915,3418.1,3418.0,5.85136]
[1718735293695,1.40568915,3418.3,3418.2,8.77653]
[1718735293898,1.83856628,3418.4,3418.2,8.77653]
[1718735293899,1.40568915,3418.4,3418.3,8.77629]
[1718735294094,1.40568915,3418.6,3418.4,2.92534]
[1718735294257,1.40568915,3418.6,3418.2,4.4167639]
[1718735294258,1.40568915,3418.7,3418.6,2.92517]
[1718735294459,3.53213718,3418.7,3418.6,2.92517]
[1718735295396,1.40568915,3418.7,3418.6,5.85034]
[1718735295962,1.40568915,3418.7,3418.6,2.92517]
[1718735296458,1.40568915,3418.7,3418.5,2.92524]
[1718735296459,1.40568915,3418.8,3418.7,2.92508]
[1718735298898,1.40568915,3418.9,3418.7,2.92508]
[1718735299776,1.52882151,3418.8,3418.7,5.85016]
[1718735299976,1.52882151,3418.8,3418.7,2.92508]
[1718735300576,1.52882151,3418.9,3418.8,2.925]
[1718735300774,1.42277208,3419.0,3418.9,8.77473]
[1718735300997,0.2,3419.0,3418.9,10.103773]
[1718735306024,0.2,3419.0,3418.9,13.028683]
[1718735306178,0.2,3419.0,3418.9,10.103773]
[1718735306383,0.2,3419.0,3418.9,16.503593]
[1718735306703,0.2,3419.0,3418.9,18.801193]
[1718735308125,0.2,3419.0,3418.9,15.876283]
[1718735308339,0.2,3419.0,3418.9,18.801193]
[1718735310245,0.2,3419.0,3418.9,15.876283]
[1718735311418,0.2,3419.0,3418.9,10.653773]
[1718735311634,0.2,3419.0,3418.9,8.77473]
[1718735312422,0.2,3419.0,3418.9,5.84982]
[1718735313437,0.2,3419.0,3418.9,2.92491]
[1718735313651,0.2,3419.0,3418.9,5.84982]
[1718735314236,0.2,3419.0,3418.7,2.92503]
[1718735314545,0.2,3419.0,3418.9,5.84982]
[1718735315338,0.2,3419.0,3418.9,8.77473]
[1718735315642,0.2,3419.0,3418.9,13.127113]
[1718735327305,0.2,3419.0,3418.9,16.052023]
[1718735327583,1.40440531,3420.0,3419.9,8.77218]
[1718735327782,0.61144807,3420.3,3419.9,8.77218]
[1718735327783,1.40440531,3420.1,3419.9,2.92406]
[1718735327989,1.40440531,3420.1,3420.0,8.77191]
[1718735328161,1.40440531,3420.1,3420.0,5.84794]
[1718735328754,1.40440531,3420.1,3420.0,8.77191]
[1718735330494,0.50618396,3420.4,3420.3,2.92372]
[1718735331367,0.91711785,3420.4,3420.3,2.92372]
[1718735332379,0.91711785,3420.4,3420.1,2.92388]
[1718735332687,0.91711785,3420.4,3420.0,2.92397]
[1718735332688,2.92399,3420.0,3419.6,2.92429]
[1718735332900,0.61024453,3419.9,3419.8,2.92414]
[1718735333115,4.44582949,3420.4,3419.9,2.92406]
[1718735333116,0.91711785,3420.1,3419.9,2.92406]
[1718735333253,0.91711785,3420.2,3420.1,2.92389]
[1718735333657,0.91711785,3420.2,3420.1,5.84778]
[1718735334103,0.91711785,3420.2,3420.1,2.92389]
[1718735334408,1.22277208,3420.3,3420.2,2.9238]
[1718735334757,4.9561091,3420.5,3420.3,2.92372]
[1718735334758,1.22277208,3420.4,3420.3,2.92372]
[1718735335369,1.22277208,3420.4,3419.9,2.92406]
[1718735335370,4.4500121,3420.5,3420.2,2.92378]
[1718735335697,1.22171634,3420.3,3420.1,2.92386]
[1718735336169,4.14543634,3420.3,3420.0,2.92395]
[1718735336367,0.91645126,3420.1,3420.0,2.92395]
[1718735336699,0.91644522,3420.1,3420.0,2.92395]
[1718735336990,0.91644522,3420.1,3419.7,2.92418]
[1718735336991,3.84039522,3420.1,3419.7,2.92418]
[1718735337192,3.84039522,3420.1,3419.5,2.92439]
[1718735337193,4.14579634,3419.9,3419.5,2.92439]
[1718735337505,1.22171634,3419.7,3419.5,2.92439]
[1718735337661,1.5264621,3419.7,3419.4,2.92446]
[1718735337859,1.22215766,3419.6,3419.4,2.92446]
[1718735338080,1.5264621,3419.7,3419.4,2.92446]
[1718735338081,1.22215766,3419.5,3419.4,2.92446]
[1718735338286,1.5264621,3419.6,3419.4,2.92446]
[1718735338532,1.5264621,3419.5,3419.4,2.92446]
[1718735338732,1.5264621,3419.6,3419.5,2.9244]
[1718735339226,5.26200152,3419.8,3419.5,2.9244]
[1718735339425,4.75591452,3419.8,3419.5,2.9244]
[1718735339640,2.12595255,3419.7,3419.5,2.9244]
[1718735340343,5.05018255,3419.7,3419.4,2.92447]
[1718735340504,2.92423,3419.7,3419.4,2.92447]
[1718735340707,2.92459,3419.3,3418.9,2.92491]
[1718735340933,0.91702936,3419.0,3418.9,2.92491]
[1718735341204,2.92492,3418.9,3418.4,5.21082]
[1718735341400,0.91728536,3418.6,3418.5,2.92525]
[1718735341611,0.91728536,3418.6,3418.0,5.27725]
[1718735341859,0.91723655,3418.4,3418.3,2.92543]
[1718735342260,3.04364504,3418.4,3418.3,2.92543]
[1718735342442,3.34945564,3418.4,3418.3,2.92543]
[1718735344257,2.12640849,3418.4,3418.3,2.92543]
[1718735344461,3.34945564,3418.4,3418.3,2.92543]
[1718735344976,2.12640849,3418.4,3418.3,2.92543]
[1718735345139,3.34945564,3418.4,3418.3,2.92543]
[1718735345543,2.12640849,3418.4,3418.3,2.92543]
[1718735345977,3.34945564,3418.4,3418.3,2.92543]
[1718735346140,2.92552,3418.2,3417.3,2.3933]
[1718735346351,0.61119174,3417.5,3417.4,2.97714674]
[1718735346663,1.22238348,3417.5,3417.4,2.9262]
[1718735347269,0.91609196,3417.5,3417.4,2.9262]
[1718735347438,0.91609196,3417.6,3417.5,2.92611]
[1718735347825,0.91609196,3417.6,3417.4,2.92612]
[1718735348254,0.61029525,3417.5,3417.4,2.92612]
[1718735348455,0.91609196,3417.6,3417.5,2.92611]
[1718735349230,0.91609196,3417.7,3417.6,2.92602]
[1718735350176,0.91609196,3417.8,3417.7,2.92594]
[1718735350551,0.91609196,3417.8,3417.5,2.92609]
[1718735350755,0.6097049,3417.6,3417.5,2.92609]
[1718735351143,0.91609196,3417.7,3417.5,2.92609]
[1718735351340,0.60932633,3417.6,3417.5,2.92609]
[1718735351872,0.60932633,3417.6,3417.0,0.741809]
[1718735352074,0.60932633,3417.5,3417.2,2.9263]
[1718735353164,0.60932633,3417.5,3417.3,2.92625]
[1718735353554,0.60932633,3417.5,3417.4,2.9262]
[1718735353779,0.60932633,3417.6,3417.4,2.9262]
[1718735354383,3.53528633,3417.7,3417.4,2.9262]
[1718735354585,0.60932633,3417.6,3417.5,2.92611]
[1718735354745,0.60932633,3417.9,3417.8,5.8517]
[1718735354947,0.60932633,3417.9,3417.5,0.55]
[1718735354948,0.60932633,3418.0,3417.9,5.85154]
[1718735355177,0.60932633,3418.1,3417.9,2.92577]
[1718735356292,0.60932633,3418.1,3418.0,2.92568]